fUST/lending_fUST_20240920
["ID","MTS","AMOUNT","RATE_DAILY","PERIOD"]
[338622655,1726805447297,-500.0,0.00017013,2]
[338622656,1726805447307,-500.70645506,0.00017013,2]
[338622657,1726805447318,-500.0,0.00017013,2]
[338622658,1726805447330,-306.0,0.00017078,2]
[338622659,1726805447340,-212.7901906,0.00017078,2]
[338622660,1726805447350,-153.0,0.00017078,2]
[338622661,1726805447362,-150.112233,0.000171,2]
[338622662,1726805447373,-150.112233,0.000171,2]
[338622663,1726805447386,-16634.7699131,0.00017107,2]
[338622664,1726805447398,-500.0,0.00017117,2]
[338622665,1726805447407,-500.0,0.00017117,2]
[338622666,1726805447417,-500.0,0.00017117,2]
[338622667,1726805447427,-497.07252346,0.00017117,2]
[338622668,1726805447440,-500.0,0.00017117,2]
[338622669,1726805447450,-500.0,0.00017117,2]
[338622670,1726805447461,-500.0,0.00017117,2]
[338622671,1726805447470,-500.5926065,0.00017117,2]
[338622672,1726805447480,-500.0,0.00017117,2]
[338622673,1726805447489,-500.0,0.00017117,2]
[338622674,1726805447498,-533.27,0.00017117,2]
[338622675,1726805447509,-500.0,0.00017117,2]
[338622676,1726805447520,-500.0,0.00017117,2]
[338622677,1726805447531,-500.88945214,0.00017117,2]
[338622678,1726805447542,-1065.68,0.00017117,2]
[338622679,1726805447554,-947.15,0.00017117,2]
[338622680,1726805447564,-500.0,0.00017117,2]
[338622681,1726805447576,-500.0,0.00017117,2]
[338622682,1726805447588,-500.0,0.00017117,2]
[338622683,1726805447599,-500.0,0.00017117,2]
[338622684,1726805447612,-503.36817669,0.00017117,2]
[338622685,1726805447629,-500.0,0.00017117,2]
[338622686,1726805447641,-443.62110101,0.00017117,2]
[338622687,1726805447651,-503.32291809,0.00017117,2]
[338622688,1726805447661,-500.0,0.00017117,2]
[338622689,1726805447672,-500.0,0.00017117,2]
[338622690,1726805447682,-501.86830141,0.00017117,2]
[338622691,1726805447692,-712.84,0.00017117,2]
[338622692,1726805447703,-1310.06,0.00017117,2]
[338622693,1726805447717,-500.0,0.00017117,2]
[338622694,1726805447728,-1070.22,0.00017117,2]
[338622695,1726805447738,-500.0,0.00017117,2]
[338622696,1726805447748,-504.08037703,0.00017117,2]
[338622697,1726805447758,-1305.98,0.00017117,2]
[338622698,1726805447768,-500.0,0.00017117,2]
[338622699,1726805447778,-667.09,0.00017117,2]
[338622700,1726805447789,-500.0,0.00017117,2]
[338622701,1726805447800,-884.93,0.00017117,2]
[338622702,1726805447811,-500.0,0.00017117,2]
[338622703,1726805447823,-501.76,0.00017117,2]
[338622704,1726805447834,-500.0,0.00017117,2]
[338622705,1726805447847,-833.43,0.00017117,2]
[338622706,1726805447863,-500.0,0.00017117,2]
[338622707,1726805447874,-1443.4,0.00017117,2]
[338622708,1726805447886,-500.0,0.00017117,2]
[338622709,1726805447897,-1131.52,0.00017117,2]
[338622710,1726805447907,-500.0,0.00017117,2]
[338622711,1726805447917,-850.59,0.00017117,2]
[338622712,1726805447929,-1363.68,0.00017117,2]
[338622713,1726805447940,-151.0,0.00017117,2]
[338622714,1726805447950,-500.0,0.00017117,2]
[338622715,1726805447962,-500.0,0.00017117,2]
[338622716,1726805447972,-521.88,0.00017117,2]
[338622717,1726805447981,-502.25089528,0.00017117,2]
[338622718,1726805447990,-501.49828543,0.00017117,2]
[338622719,1726805448000,-591.31,0.00017117,2]
[338622720,1726805448010,-500.0,0.00017117,2]
[338622721,1726805448021,-500.0,0.00017117,2]
[338622722,1726805448030,-500.0,0.00017117,2]
[338622723,1726805448040,-1338.31,0.00017117,2]
[338622724,1726805448050,-500.0,0.00017117,2]
[338622725,1726805448059,-927.62,0.00017117,2]
[338622726,1726805448068,-500.0,0.00017117,2]
[338622727,1726805448077,-500.0,0.00017117,2]
[338622728,1726805448087,-500.0,0.00017117,2]
[338622729,1726805448097,-500.0,0.00017117,2]
[338622730,1726805448106,-562.22,0.00017117,2]
[338622732,1726805448117,-500.0,0.00017117,2]
[338622734,1726805448127,-500.0,0.00017117,2]
[338622736,1726805448136,-500.88481056,0.00017117,2]
[338622738,1726805448146,-853.86,0.00017117,2]
[338622740,1726805448156,-500.0,0.00017117,2]
[338622741,1726805448165,-500.60352931,0.00017117,2]
[338622743,1726805448175,-523.82882354,0.00017117,2]
[338622745,1726805448184,-500.0,0.00017117,2]
[338622747,1726805448194,-500.0,0.00017117,2]
[338622749,1726805448204,-500.0,0.00017117,2]
[338622751,1726805448215,-836.64,0.00017117,2]
[338622753,1726805448225,-500.0,0.00017117,2]
[338622755,1726805448234,-500.0,0.00017117,2]
[338622756,1726805448244,-500.0,0.00017117,2]
[338622758,1726805448259,-500.0,0.00017117,2]
[338622759,1726805448268,-500.0,0.00017117,2]
[338622760,1726805448279,-525.44065369,0.00017117,2]
[338622761,1726805448288,-405.39156767,0.00017117,2]
[338622762,1726805448298,-821.21,0.00017117,2]
[338622763,1726805448308,-494.83516937,0.00017117,2]
[338622764,1726805448319,-500.0,0.00017117,2]
[338622765,1726805448329,-500.0,0.00017117,2]
[338622766,1726805448340,-500.0,0.00017117,2]
[338622767,1726805448351,-500.0,0.00017117,2]
[338622768,1726805448362,-503.84,0.00017117,2]
[338622769,1726805448372,-500.0,0.00017117,2]
[338622770,1726805448383,-1274.762704,0.00017117,2]
[338622771,1726805448393,-500.0,0.00017117,2]
[338622772,1726805448402,-501.08827718,0.00017117,2]
[338622773,1726805448412,-500.0,0.00017117,2]
[338622774,1726805448422,-419.34911458,0.00017117,2]
[338622775,1726805448432,-500.0,0.00017117,2]
[338622776,1726805448442,-500.0,0.00017117,2]
[338622777,1726805448451,-504.41551199,0.00017117,2]
[338622778,1726805448465,-500.0,0.00017117,2]
[338622779,1726805448475,-191.18920093,0.00017117,2]
[338622780,1726805448485,-530.60721618,0.00017117,2]
[338622781,1726805448495,-500.0,0.00017117,2]
[338622782,1726805448505,-500.0,0.00017117,2]
[338622783,1726805448514,-500.0,0.00017117,2]
[338622784,1726805448524,-514.97174569,0.00017117,2]
[338622785,1726805448533,-515.27343009,0.00017117,2]
[338622786,1726805448543,-500.0,0.00017117,2]
[338622787,1726805448553,-500.0,0.00017117,2]
[338622788,1726805448562,-500.0,0.00017117,2]
[338622789,1726805448571,-420.0,0.0001712,2]
[338622790,1726805448580,-150.112233,0.000172,2]
[338622791,1726805448590,-150.112233,0.000172,2]
[338622792,1726805448600,-420.0,0.00017219,2]
[338622793,1726805448609,-152.361941,0.0001726,2]
[338622794,1726805448618,-1825.04,0.0001726,2]
[338622795,1726805448628,-500.0,0.0001726,2]
[338622796,1726805448638,-1274.762704,0.0001726,2]
[338622797,1726805448647,-582.02,0.0001726,2]
[338622798,1726805448657,-599.37,0.0001726,2]
[338622799,1726805448667,-359.95,0.0001726,2]
[338622800,1726805448677,-500.0,0.0001726,2]
[338622801,1726805448686,-500.0,0.0001726,2]
[338622802,1726805448696,-1178.89,0.0001726,2]
[338622803,1726805448705,-500.0,0.0001726,2]
[338622804,1726805448718,-602.26,0.0001726,2]
[338622805,1726805448729,-20530.13824269,0.0001726,2]
[338622806,1726805448912,-1237.22567969,0.0001726,2]
[338623141,1726806640516,-300.0,0.00015014,2]
[338623143,1726806640526,-300.0,0.00015014,2]
[338623145,1726806640536,-24900.0,0.00015015,2]
[338623147,1726806640545,-163.435992,0.00015135,2]
[338623149,1726806640555,-163.435992,0.0001553,2]
[338623151,1726806640564,-163.435992,0.00015924,2]
[338623153,1726806640573,-2835.010388,0.00016327,2]
[338623155,1726806640583,-830.4829052,0.000164,2]
[338623157,1726806640592,-154.2261532,0.000164,2]
[338623159,1726806640603,-12631.0767418,0.00016418,2]
[338623161,1726806640612,-55504.88713,0.00016418,2]
[338623163,1726806640621,-12631.0767418,0.00016427,2]
[338623165,1726806640630,-55504.88713,0.00016427,2]
[338623167,1726806640639,-264.51312861,0.00016427,2]
[338623169,1726806640648,-500.0,0.00016427,2]
[338623171,1726806640657,-553.34310958,0.00016427,2]
[338623173,1726806640667,-500.0,0.00016427,2]
[338623175,1726806640677,-500.0,0.00016427,2]
[338623177,1726806640688,-467.53905659,0.00016427,2]
[338623179,1726806640698,-500.0,0.00016427,2]
[338623181,1726806640708,-500.0,0.00016427,2]
[338623183,1726806640719,-303.11340057,0.00016427,2]
[338623185,1726806640730,-500.0,0.00016427,2]
[338623187,1726806640740,-500.0,0.00016427,2]
[338623189,1726806640749,-500.0,0.00016427,2]
[338623191,1726806640760,-500.0,0.00016427,2]
[338623194,1726806640771,-500.0,0.00016427,2]
[338623196,1726806640782,-169.99009167,0.00016427,2]
[338623198,1726806640792,-237.72804819,0.00016427,2]
[338623221,1726806641011,-500.0,0.00016427,2]
[338623223,1726806641021,-500.0,0.00016427,2]
[338623225,1726806641032,-500.0,0.00016427,2]
[338623227,1726806641043,-500.0,0.00016427,2]
[338623229,1726806641053,-500.0,0.00016427,2]
[338623231,1726806641062,-247.87568191,0.00016427,2]
[338623233,1726806641071,-500.0,0.00016427,2]
[338623235,1726806641080,-500.0,0.00016427,2]
[338623237,1726806641090,-500.0,0.00016427,2]
[338623239,1726806641099,-500.0,0.00016427,2]
[338623241,1726806641114,-500.0,0.00016427,2]
[338623243,1726806641124,-500.0,0.00016427,2]
[338623245,1726806641133,-500.0,0.00016427,2]
[338623247,1726806641144,-500.0,0.00016427,2]
[338623249,1726806641154,-430.0,0.00016427,2]
[338623251,1726806641163,-500.0,0.00016427,2]
[338623254,1726806641173,-500.0,0.00016427,2]
[338623255,1726806641182,-500.0,0.00016427,2]
[338623257,1726806641193,-500.0,0.00016427,2]
[338623260,1726806641203,-500.0,0.00016427,2]
[338623261,1726806641213,-353.21210002,0.00016427,2]
[338623264,1726806641222,-500.0,0.00016427,2]
[338623266,1726806641231,-500.0,0.00016427,2]
[338623267,1726806641240,-500.0,0.00016427,2]
[338623269,1726806641250,-500.0,0.00016427,2]
[338623271,1726806641259,-500.0,0.00016427,2]
[338623273,1726806641269,-500.0,0.00016427,2]
[338623276,1726806641278,-240.57594385,0.00016427,2]
[338623278,1726806641287,-500.0,0.00016427,2]
[338623281,1726806641306,-500.0,0.00016427,2]
[338623283,1726806641317,-500.0,0.00016427,2]
[338623285,1726806641326,-500.0,0.00016427,2]
[338623287,1726806641336,-500.0,0.00016427,2]
[338623289,1726806641346,-500.0,0.00016427,2]
[338623291,1726806641358,-500.0,0.00016427,2]
[338623293,1726806641368,-500.0,0.00016427,2]
[338623295,1726806641378,-500.0,0.00016427,2]
[338623297,1726806641387,-500.0,0.00016427,2]
[338623299,1726806641397,-500.0,0.00016427,2]
[338623301,1726806641406,-500.0,0.00016427,2]
[338623303,1726806641416,-500.0,0.00016427,2]
[338623305,1726806641426,-500.0,0.00016427,2]
[338623307,1726806641436,-500.0,0.00016427,2]
[338623309,1726806641446,-500.0,0.00016427,2]
[338623311,1726806641455,-500.0,0.00016427,2]
[338623312,1726806641465,-500.0,0.00016427,2]
[338623313,1726806641475,-500.0,0.00016427,2]
[338623314,1726806641485,-500.0,0.00016427,2]
[338623315,1726806641495,-500.0,0.00016427,2]
[338623316,1726806641505,-500.0,0.00016427,2]
[338623317,1726806641515,-555.61216135,0.00016427,2]
[338623318,1726806641525,-500.0,0.00016427,2]
[338623319,1726806641535,-500.0,0.00016427,2]
[338623320,1726806641546,-500.0,0.00016427,2]
[338623321,1726806641555,-500.0,0.00016427,2]
[338623322,1726806641565,-500.0,0.00016427,2]
[338623323,1726806641575,-500.0,0.00016427,2]
[338623324,1726806641585,-500.0,0.00016427,2]
[338623325,1726806641595,-500.0,0.00016427,2]
[338623326,1726806641606,-500.0,0.00016427,2]
[338623327,1726806641616,-500.0,0.00016427,2]
[338623328,1726806641626,-500.0,0.00016427,2]
[338623329,1726806641635,-500.0,0.00016427,2]
[338623331,1726806641646,-500.0,0.00016427,2]
[338623332,1726806641655,-500.0,0.00016427,2]
[338623333,1726806641665,-500.0,0.00016427,2]
[338623334,1726806641675,-500.0,0.00016427,2]
[338623335,1726806641684,-500.0,0.00016427,2]
[338623336,1726806641694,-250.0,0.00016427,2]
[338623337,1726806641704,-500.0,0.00016427,2]
[338623338,1726806641714,-500.0,0.00016427,2]
[338623339,1726806641724,-50524.3069673,0.00016428,2]
[338623341,1726806641735,-222019.54852,0.00016428,2]
[338623342,1726806641747,-420.0,0.00016431,2]
[338623343,1726806641758,-500.0,0.00016438,2]
[338623344,1726806641768,-500.0,0.00016438,2]
[338623345,1726806641778,-500.0,0.00016438,2]
[338623346,1726806641788,-500.0,0.00016438,2]
[338623347,1726806641799,-1075.24,0.00016438,2]
[338623348,1726806641814,-500.0,0.00016438,2]
[338623349,1726806641826,-526.67,0.00016438,2]
[338623350,1726806641836,-536.21,0.00016438,2]
[338623351,1726806641847,-500.0,0.00016438,2]
[338623352,1726806641861,-500.0,0.00016438,2]
[338623353,1726806641871,-500.0,0.00016438,2]
[338623354,1726806641885,-500.0,0.00016438,2]
[338623355,1726806641897,-500.0,0.00016438,2]
[338623356,1726806641908,-500.0,0.00016438,2]
[338623357,1726806641922,-500.0,0.00016438,2]
[338623358,1726806641933,-500.0,0.00016438,2]
[338623359,1726806641943,-831.76,0.00016438,2]
[338623360,1726806641955,-500.0,0.00016438,2]
[338623361,1726806641965,-500.0,0.00016438,2]
[338623362,1726806641975,-655.98,0.00016438,2]
[338623363,1726806641986,-500.0,0.00016438,2]
[338623364,1726806641995,-270.62485589,0.00016438,2]
[338623366,1726806642006,-218.27,0.00016438,2]
[338623367,1726806642018,-500.0,0.00016438,2]
[338623368,1726806642029,-500.0,0.00016438,2]
[338623369,1726806642038,-500.0,0.00016438,2]
[338623370,1726806642048,-500.0,0.00016438,2]
[338623371,1726806642058,-1114.97,0.00016438,2]
[338623372,1726806642068,-500.0,0.00016438,2]
[338623373,1726806642081,-500.0,0.00016438,2]
[338623374,1726806642091,-500.0,0.00016438,2]
[338623375,1726806642105,-500.0,0.00016438,2]
[338623376,1726806642115,-500.0,0.00016438,2]
[338623377,1726806642125,-281.42381799,0.00016438,2]
[338623516,1726807001832,159.5,0.0002051,120]
[338623538,1726807618156,-229.9965433,0.00015008,2]
[338623576,1726807832780,-300.0,0.00015008,2]
[338623579,1726807832791,-300.0,0.00015008,2]
[338623581,1726807832801,-1835.52,0.00015009,2]
[338623602,1726807838717,-23064.48,0.00015009,2]
[338623603,1726807838727,-253.766483,0.0001521,2]
[338623604,1726807838737,-250.000001,0.0001526,2]
[338623605,1726807838748,-4063.91120116,0.00016171,2]
[338623606,1726807838758,-2480.6340895,0.000163,2]
[338623607,1726807838767,-1642.31571917,0.00016338,2]
[338623608,1726807838776,-150.112233,0.000164,2]
[338623609,1726807838790,-150.112233,0.000164,2]
[338623610,1726807838799,-150.112233,0.000164,2]
[338623611,1726807838808,-150.112233,0.000164,2]
[338623612,1726807838817,-150.112233,0.000164,2]
[338623613,1726807838826,-150.112233,0.000164,2]
[338623614,1726807838836,-150.112233,0.000164,2]
[338623615,1726807838846,-150.112233,0.000164,2]
[338623616,1726807838855,-154.346563,0.000164,2]
[338623617,1726807838864,-38523.7392827,0.00016407,2]
[338623618,1726807838874,-6382.22720875,0.00016407,2]
[338623619,1726807838883,-500.0,0.00016407,2]
[338623620,1726807838893,-500.0,0.00016407,2]
[338623621,1726807838902,-169.99009167,0.00016407,2]
[338623622,1726807838912,-500.0,0.00016407,2]
[338623623,1726807838921,-500.0,0.00016407,2]
[338623624,1726807838931,-489.26621952,0.00016407,2]
[338623625,1726807838940,-500.0,0.00016407,2]
[338623626,1726807838948,-827.10506048,0.00016407,2]
[338623627,1726807838957,-186.10124521,0.00016407,2]
[338623628,1726807838966,-500.0,0.00016407,2]
[338623629,1726807838976,-190.57594385,0.00016407,2]
[338623630,1726807838985,-827.10506048,0.00016407,2]
[338623631,1726807838995,-247.87568191,0.00016407,2]
[338623632,1726807839004,-500.0,0.00016407,2]
[338623633,1726807839014,-500.0,0.00016407,2]
[338623634,1726807839023,-827.10506048,0.00016407,2]
[338623635,1726807839034,-500.0,0.00016407,2]
[338623636,1726807839043,-500.0,0.00016407,2]
[338623637,1726807839052,-827.10506048,0.00016407,2]
[338623638,1726807839062,-500.0,0.00016407,2]
[338623639,1726807839071,-500.0,0.00016407,2]
[338623640,1726807839080,-827.10506048,0.00016407,2]
[338623641,1726807839090,-500.0,0.00016407,2]
[338623642,1726807839099,-500.0,0.00016407,2]
[338623643,1726807839108,-827.10506048,0.00016407,2]
[338623644,1726807839118,-500.0,0.00016407,2]
[338623645,1726807839127,-500.0,0.00016407,2]
[338623646,1726807839137,-827.10506048,0.00016407,2]
[338623647,1726807839146,-500.0,0.00016407,2]
[338623648,1726807839155,-827.10506048,0.00016407,2]
[338623649,1726807839167,-500.0,0.00016407,2]
[338623650,1726807839177,-500.0,0.00016407,2]
[338623651,1726807839187,-500.0,0.00016407,2]
[338623652,1726807839196,-500.0,0.00016407,2]
[338623653,1726807839205,-827.10506048,0.00016407,2]
[338623654,1726807839215,-500.0,0.00016407,2]
[338623655,1726807839224,-500.0,0.00016407,2]
[338623656,1726807839234,-400.0,0.00016407,2]
[338623657,1726807839243,-500.0,0.00016407,2]
[338623658,1726807839253,-827.10506048,0.00016407,2]
[338623659,1726807839263,-827.10506048,0.00016407,2]
[338623660,1726807839273,-827.10506048,0.00016407,2]
[338623661,1726807839283,-827.10506048,0.00016407,2]
[338623662,1726807839292,-827.10506048,0.00016407,2]
[338623663,1726807839302,-827.10506048,0.00016407,2]
[338623664,1726807839311,-827.10506048,0.00016407,2]
[338623665,1726807839321,-827.10506048,0.00016407,2]
[338623666,1726807839330,-827.10506048,0.00016407,2]
[338623667,1726807839339,-827.10506048,0.00016407,2]
[338623668,1726807839349,-827.10506048,0.00016407,2]
[338623669,1726807839358,-827.10506048,0.00016407,2]
[338623670,1726807839367,-827.10506048,0.00016407,2]
[338623671,1726807839377,-827.10506048,0.00016407,2]
[338623672,1726807839387,-827.10506048,0.00016407,2]
[338623673,1726807839397,-827.10506048,0.00016407,2]
[338623674,1726807839411,-827.10506048,0.00016407,2]
[338623675,1726807839421,-827.10506048,0.00016407,2]
[338623676,1726807839430,-827.10506048,0.00016407,2]
[338623677,1726807839439,-827.10506048,0.00016407,2]
[338623678,1726807839448,-827.10506048,0.00016407,2]
[338623679,1726807839458,-827.10506048,0.00016407,2]
[338623680,1726807839467,-827.10506048,0.00016407,2]
[338623681,1726807839477,-827.10506048,0.00016407,2]
[338623682,1726807839486,-827.10506048,0.00016407,2]
[338623683,1726807839497,-827.10506048,0.00016407,2]
[338623684,1726807839506,-827.10506048,0.00016407,2]
[338623685,1726807839516,-827.10506048,0.00016407,2]
[338623686,1726807839732,-827.10506048,0.00016407,2]
[338623687,1726807839742,-827.10506048,0.00016407,2]
[338623688,1726807839752,-827.10506048,0.00016407,2]
[338623689,1726807839761,-827.10506048,0.00016407,2]
[338623690,1726807839772,-827.10506048,0.00016407,2]
[338623691,1726807839783,-827.10506048,0.00016407,2]
[338623692,1726807839792,-827.10506048,0.00016407,2]
[338623693,1726807839802,-827.10506048,0.00016407,2]
[338623694,1726807839812,-827.10506048,0.00016407,2]
[338623695,1726807839822,-827.10506048,0.00016407,2]
[338623696,1726807839831,-827.10506048,0.00016407,2]
[338623697,1726807839841,-827.10506048,0.00016407,2]
[338623698,1726807839850,-827.10506048,0.00016407,2]
[338623699,1726807839860,-827.10506048,0.00016407,2]
[338623700,1726807839869,-827.10506048,0.00016407,2]
[338623701,1726807839878,-827.10506048,0.00016407,2]
[338623702,1726807839887,-827.10506048,0.00016407,2]
[338623703,1726807839896,-827.10506048,0.00016407,2]
[338623704,1726807839905,-827.10506048,0.00016407,2]
[338623705,1726807839914,-827.10506048,0.00016407,2]
[338623706,1726807839923,-827.10506048,0.00016407,2]
[338623707,1726807839932,-827.10506048,0.00016407,2]
[338623708,1726807839942,-827.10506048,0.00016407,2]
[338623709,1726807839951,-827.10506048,0.00016407,2]
[338623710,1726807839960,-827.10506048,0.00016407,2]
[338623711,1726807839969,-827.10506048,0.00016407,2]
[338623712,1726807839979,-827.10506048,0.00016407,2]
[338623713,1726807839988,-827.10506048,0.00016407,2]
[338623714,1726807839997,-827.10506048,0.00016407,2]
[338623715,1726807840007,-809.12451567,0.00016407,2]
[338623716,1726807840017,-809.12451567,0.00016407,2]
[338623717,1726807840027,-809.12451567,0.00016407,2]
[338623718,1726807840037,-809.12451567,0.00016407,2]
[338623719,1726807840047,-809.12451567,0.00016407,2]
[338623720,1726807840056,-809.12451567,0.00016407,2]
[338623721,1726807840066,-809.12451567,0.00016407,2]
[338623722,1726807840076,-809.12451567,0.00016407,2]
[338623723,1726807840085,-809.12451567,0.00016407,2]
[338623724,1726807840094,-809.12451567,0.00016407,2]
[338623725,1726807840103,-809.12451567,0.00016407,2]
[338623726,1726807840113,-809.12451567,0.00016407,2]
[338623727,1726807840122,-809.12451567,0.00016407,2]
[338623728,1726807840131,-809.12451567,0.00016407,2]
[338623729,1726807840141,-809.12451567,0.00016407,2]
[338623730,1726807840150,-809.12451567,0.00016407,2]
[338623732,1726807840159,-809.12451567,0.00016407,2]
[338623733,1726807840168,-809.12451567,0.00016407,2]
[338623734,1726807840178,-809.12451567,0.00016407,2]
[338623735,1726807840188,-809.12451567,0.00016407,2]
[338623736,1726807840197,-809.12451567,0.00016407,2]
[338623737,1726807840207,-809.12451567,0.00016407,2]
[338623738,1726807840216,-809.12451567,0.00016407,2]
[338623739,1726807840225,-500.0,0.00016407,2]
[338623740,1726807840234,-500.0,0.00016407,2]
[338623741,1726807840243,-500.0,0.00016407,2]
[338623742,1726807840253,-500.0,0.00016407,2]
[338623743,1726807840263,-500.0,0.00016407,2]
[338623744,1726807840272,-500.0,0.00016407,2]
[338623745,1726807840281,-500.0,0.00016407,2]
[338623746,1726807840291,-500.0,0.00016407,2]
[338623747,1726807840300,-500.0,0.00016407,2]
[338623748,1726807840310,-500.0,0.00016407,2]
[338623749,1726807840320,-500.0,0.00016407,2]
[338623750,1726807840330,-500.0,0.00016407,2]
[338623751,1726807840339,-500.0,0.00016407,2]
[338623752,1726807840349,-500.0,0.00016407,2]
[338623753,1726807840358,-500.0,0.00016407,2]
[338623754,1726807840368,-606.41308525,0.00016407,2]
[338623755,1726807840377,-500.0,0.00016407,2]
[338623756,1726807840387,-500.0,0.00016407,2]
[338623757,1726807840397,-500.0,0.00016407,2]
[338623758,1726807840409,-500.0,0.00016407,2]
[338623759,1726807840418,-500.0,0.00016407,2]
[338623760,1726807840427,-500.0,0.00016407,2]
[338623761,1726807840437,-500.0,0.00016407,2]
[338623762,1726807840447,-500.0,0.00016407,2]
[338623763,1726807840456,-500.0,0.00016407,2]
[338623764,1726807840466,-500.0,0.00016407,2]
[338623765,1726807840475,-500.0,0.00016407,2]
[338623766,1726807840485,-500.0,0.00016407,2]
[338623767,1726807840495,-500.0,0.00016407,2]
[338623768,1726807840505,-500.0,0.00016407,2]
[338623769,1726807840514,-500.0,0.00016407,2]
[338623770,1726807840523,-500.0,0.00016407,2]
[338623771,1726807840534,-500.0,0.00016407,2]
[338623772,1726807840543,-500.0,0.00016407,2]
[338623773,1726807840552,-500.0,0.00016407,2]
[338623774,1726807840561,-500.0,0.00016407,2]
[338623775,1726807840572,-1533.88132553,0.00016407,2]
[338623776,1726807840581,-500.0,0.00016407,2]
[338623777,1726807840590,-500.0,0.00016407,2]
[338623778,1726807840599,-377.87589801,0.00016407,2]
[338623779,1726807840609,-500.0,0.00016407,2]
[338623780,1726807840618,-500.0,0.00016407,2]
[338623781,1726807840627,-290.49015654,0.00016407,2]
[338623782,1726807840637,-500.0,0.00016407,2]
[338623783,1726807840646,-500.0,0.00016407,2]
[338623784,1726807840656,-167.91293799,0.00016407,2]
[338623785,1726807840665,-500.0,0.00016407,2]
[338623786,1726807840674,-500.0,0.00016407,2]
[338623787,1726807840683,-500.0,0.00016407,2]
[338623788,1726807840692,-500.0,0.00016407,2]
[338623789,1726807840701,-500.0,0.00016407,2]
[338623790,1726807840710,-500.0,0.00016407,2]
[338623791,1726807840719,-500.0,0.00016407,2]
[338623792,1726807840728,-500.0,0.00016407,2]
[338623793,1726807840738,-231142.435696,0.00016408,2]
[338623794,1726807840748,-51057.81767,0.00016408,2]
[338623795,1726807840757,-420.0,0.00016425,2]
[338623797,1726807840766,-51057.81767,0.00016428,2]
[338623798,1726807840775,-154.79661188,0.00016435,2]
[338623799,1726807840785,-261.603151,0.00016438,2]
[338623800,1726807840794,-312.386417,0.00016438,2]
[338623801,1726807840805,-312.386417,0.00016438,2]
[338623802,1726807840815,-500.0,0.00016438,2]
[338623804,1726807840827,-500.0,0.00016438,2]
[338623806,1726807840838,-500.0,0.00016438,2]
[338623807,1726807840848,-154.3442561,0.00016438,2]
[338623808,1726807840857,-500.0,0.00016438,2]
[338623809,1726807840867,-500.0,0.00016438,2]
[338623810,1726807840878,-500.0,0.00016438,2]
[338623811,1726807840889,-247.859748,0.00016438,2]
[338623812,1726807840898,-500.0,0.00016438,2]
[338623813,1726807840907,-247.859748,0.00016438,2]
[338623814,1726807840917,-500.0,0.00016438,2]
[338623815,1726807840927,-500.0,0.00016438,2]
[338623816,1726807840936,-151.0,0.00016438,2]
[338623817,1726807840945,-500.0,0.00016438,2]
[338623818,1726807840954,-151.0,0.00016438,2]
[338623819,1726807840963,-911.2,0.00016438,2]
[338623820,1726807840972,-151.0,0.00016438,2]
[338623821,1726807840981,-508.75,0.00016438,2]
[338623822,1726807840991,-500.0,0.00016438,2]
[338623823,1726807841001,-500.0,0.00016438,2]
[338623824,1726807841011,-620.1,0.00016438,2]